bitfinex/quotes_ETHUSD_20240604
["timestamp","ask_amount","ask_price","bid_price","bid_amount"]
[1717519662141,0.67134965,3819.2,3819.0,2.61848]
[1717519662995,4.55208317,3819.5,3819.2,2.61833]
[1717519663277,4.55208317,3819.5,3819.4,2.61821]
[1717519663626,4.55208317,3819.5,3818.7,3.0]
[1717519663627,4.33594184,3819.5,3819.1,2.61839]
[1717519663869,4.33594184,3819.5,3819.2,0.02411101]
[1717519664364,4.33594184,3819.5,3819.1,2.61839]
[1717519664967,0.67134965,3819.2,3819.1,2.61839]
[1717519665363,0.67134965,3819.2,3819.1,2.64526967]
[1717519665534,8.65876267,3819.2,3819.1,0.02687967]
[1717519665740,8.82938317,3819.2,3819.1,0.02687967]
[1717519665963,0.67134965,3818.0,3817.5,2.61946]
[1717519666284,2.61861,3818.9,3817.5,2.61946]
[1717519666285,0.67134965,3817.6,3817.5,2.61946]
[1717519667734,0.67134965,3817.6,3817.5,5.61946]
[1717519669264,0.67134965,3817.6,3817.5,2.61946]
[1717519669466,0.67134965,3818.0,3817.8,2.6193]
[1717519670290,3.88073352,3818.1,3817.8,2.6193]
[1717519670822,0.67134965,3818.2,3818.1,2.6191]
[1717519671814,0.67134965,3818.2,3817.6,0.55]
[1717519671815,0.67134965,3818.4,3817.8,2.6193]
[1717519672393,0.67134965,3817.9,3817.8,2.6193]
[1717519672768,0.67134965,3817.9,3817.8,2.64885559]
[1717519673568,0.67134965,3818.4,3818.1,2.6191]
[1717519673773,0.67134965,3818.2,3818.1,2.6191]
[1717519674707,0.67134965,3818.2,3818.1,2.64305433]
[1717519675070,0.67134965,3818.4,3818.1,2.64305433]
[1717519675469,0.67134965,3818.2,3818.1,2.64305433]
[1717519676257,0.67134965,3818.6,3818.5,2.61882]
[1717519676813,0.67134965,3818.6,3818.5,2.64267238]
[1717519677271,3.88073352,3818.7,3818.5,2.64267238]
[1717519678763,3.88073352,3818.7,3818.5,5.26149238]
[1717519678914,3.88073352,3818.7,3818.6,3.55]
[1717519679338,3.88073352,3818.7,3818.6,3.57749103]
[1717519679740,3.84098021,3818.7,3818.6,3.57749103]
[1717519680443,3.84098021,3818.7,3818.6,0.57749103]
[1717519680728,3.84098021,3818.7,3818.6,0.02749103]
[1717519680963,4.51232986,3818.7,3818.6,0.02749103]
[1717519681185,3.84098021,3818.7,3818.6,0.02749103]
[1717519682568,4.78528989,3818.7,3818.6,0.02749103]
[1717519683473,3.84098021,3818.7,3818.6,0.02749103]
[1717519686273,3.84098021,3818.7,3818.6,0.59311152]
[1717519687870,3.84098021,3818.7,3818.6,0.58622305]
[1717519688030,3.84098021,3818.7,3818.6,0.54311152]
[1717519688471,4.51232986,3818.7,3818.5,2.61882]
[1717519689767,3.84098021,3818.7,3818.6,3.0]
[1717519689933,3.84098021,3818.7,3818.6,3.55]
[1717519691677,1.48118021,3818.7,3818.6,5.8646]
[1717519691976,0.67134965,3819.8,3818.8,2.61859]
[1717519692177,0.67134965,3819.8,3819.7,2.618]
[1717519693079,0.62134965,3819.8,3819.7,2.618]
[1717519694602,3.80425785,3820.4,3819.0,2.61843]
[1717519694603,1.71607794,3820.3,3820.0,2.61773]
[1717519694903,0.62134965,3820.3,3820.0,2.61773]
[1717519695274,1.71607794,3820.5,3820.4,2.61752]
[1717519695637,1.09472829,3820.7,3820.4,2.61752]
[1717519695765,0.62134965,3820.7,3820.4,2.61752]
[1717519695966,1.09472829,3820.8,3820.4,2.61752]
[1717519696367,1.36965785,3821.0,3820.8,2.61725]
[1717519697006,1.09498109,3820.9,3820.8,2.61725]
[1717519697166,1.71633074,3821.2,3820.8,2.61725]
[1717519697562,1.09498109,3821.1,3820.8,2.61725]
[1717519698164,1.71633074,3821.2,3820.8,2.61725]
[1717519698376,1.71633074,3821.2,3821.0,2.61711]
[1717519698679,0.62134965,3821.2,3821.0,2.61711]
[1717519699509,1.36965785,3821.5,3821.0,2.61711]
[1717519699510,0.79298272,3821.1,3821.0,2.61711]
[1717519699809,1.09498109,3821.3,3821.0,2.61711]
[1717519699988,0.62134965,3821.2,3821.0,2.61711]
[1717519700403,1.71633074,3821.2,3821.0,2.61711]
[1717519701314,0.62134965,3821.2,3821.0,2.61711]
[1717519703509,1.09498109,3821.3,3821.0,2.61711]
[1717519703667,0.24616982,3821.2,3821.0,2.61711]
[1717519703867,1.71633074,3821.3,3821.0,2.61711]
[1717519704117,0.62134965,3821.3,3821.0,2.61711]
[1717519707721,1.71633074,3821.3,3821.0,2.61711]
[1717519708416,0.62134965,3821.3,3821.0,2.61711]
[1717519708832,0.62134965,3821.1,3821.0,2.61711]
[1717519711413,1.34103076,3821.3,3820.7,2.6173]
[1717519711723,0.62134965,3820.8,3820.7,2.6173]
[1717519712106,0.62134965,3820.8,3820.1,3.0]
[1717519712107,0.62134965,3820.4,3820.1,2.61768]
[1717519712338,0.62134965,3820.2,3820.1,2.61768]
[1717519713041,0.62134965,3820.3,3820.1,2.61768]
[1717519715056,0.62134965,3820.8,3819.8,2.6179]
[1717519715252,1.71633074,3821.0,3819.9,2.4139]
[1717519715555,1.71633074,3821.0,3820.7,2.61732]
[1717519716051,0.62134965,3821.0,3820.7,2.61732]
[1717519717146,0.62134965,3820.8,3820.7,2.61732]
[1717519717307,0.62134965,3821.0,3820.7,2.61732]
[1717519717512,0.62134965,3820.8,3820.7,2.61732]
[1717519718651,0.62134965,3820.8,3819.9,3.0]
[1717519718652,0.62134965,3820.5,3820.4,2.61751]
[1717519721860,0.62134965,3820.1,3819.5,4.902]
[1717519722050,0.62134965,3820.1,3820.0,2.6178]
[1717519724310,0.79298272,3820.1,3820.0,2.6178]
[1717519724781,0.62134965,3819.8,3819.7,2.61798]
[1717519724984,0.62134965,3819.4,3818.8,2.88011]
[1717519725285,0.62134965,3819.4,3819.3,2.61828]
[1717519732722,0.62134965,3819.6,3819.3,2.61828]
[1717519733074,0.62134965,3819.4,3819.3,2.61828]
[1717519733817,0.62134965,3819.6,3819.3,2.61828]
[1717519733971,0.62134965,3819.6,3819.3,5.23656]
[1717519734287,0.62134965,3819.8,3819.3,2.61828]
[1717519734485,1.71633074,3820.0,3819.3,2.61828]
[1717519734693,1.71633074,3820.0,3819.7,2.618]
[1717519735097,1.09498109,3819.9,3819.7,2.618]
[1717519736286,1.71633074,3820.0,3819.7,2.618]
[1717519736682,0.62134965,3819.8,3819.7,2.618]
[1717519736882,0.62134965,3820.0,3819.7,2.618]
[1717519738109,1.71633074,3820.0,3819.7,2.618]
[1717519738294,1.09498109,3820.0,3819.7,2.618]
[1717519738490,0.62134965,3820.0,3819.7,2.618]
[1717519738717,1.71633074,3820.0,3819.7,2.618]
[1717519738915,0.62134965,3820.0,3819.7,2.618]
[1717519740616,0.62134965,3819.8,3819.7,2.618]
[1717519741386,0.62134965,3820.3,3820.2,2.61766]
[1717519745779,4.93076696,3820.4,3820.2,2.61766]
[1717519746025,0.62134965,3820.3,3820.2,2.61766]
[1717519747717,0.62134965,3820.5,3820.2,2.61766]
[1717519748018,0.62134965,3820.3,3820.2,2.61766]
[1717519749020,0.62134965,3820.5,3820.2,2.61766]
[1717519749393,0.62134965,3820.5,3820.2,5.23532]
[1717519750425,0.62134965,3820.7,3820.6,2.61738]
[1717519752412,3.29178272,3820.7,3820.6,2.61738]
[1717519752924,0.62134965,3820.4,3820.3,2.61754]
[1717519753836,0.62134965,3820.1,3820.0,2.61776]
[1717519754283,2.67043307,3820.7,3819.6,2.61801]
[1717519754284,0.62134965,3819.8,3819.6,2.61801]
[1717519755019,0.62134965,3820.1,3819.6,2.61801]
[1717519755224,0.41949307,3820.0,3819.6,2.61801]
[1717519755421,0.62134965,3819.7,3819.6,2.61801]
[1717519756824,0.62134965,3819.4,3819.3,2.61825]
[1717519761912,0.62134965,3819.0,3818.9,2.61852]
[1717519762458,4.93076696,3819.4,3818.6,2.61873]
[1717519762459,0.62134965,3818.7,3818.6,2.61873]
[1717519767615,4.93076696,3819.3,3818.6,2.61873]
[1717519767924,6.04111576,3819.3,3818.6,2.61873]
[1717519768229,6.04111576,3819.3,3818.8,2.61858]
[1717519768547,4.93076696,3819.3,3819.0,2.61843]
[1717519769302,4.93076696,3819.3,3819.0,5.2369]
[1717519771829,1.48118021,3819.7,3819.2,2.61834]
[1717519772031,1.48118021,3819.7,3819.6,2.61807]
[1717519772269,1.48118021,3819.7,3819.6,5.23614]
[1717519772559,0.62134965,3820.3,3820.2,2.61766]
[1717519774233,5.55211661,3820.5,3820.2,2.61766]
[1717519776147,0.62134965,3820.5,3820.2,2.61766]
[1717519776443,1.17656131,3820.5,3820.2,2.61766]
[1717519776774,0.62134965,3820.5,3820.2,2.61766]
[1717519779675,4.93076696,3820.8,3820.2,2.61766]
[1717519779676,0.62134965,3820.3,3820.2,2.61766]
[1717519781384,0.62134965,3819.9,3819.4,3.0]
[1717519781677,6.41194717,3820.4,3819.7,2.61798]
[1717519781849,0.62134965,3819.8,3819.7,2.61798]
[1717519784055,9.27843717,3820.4,3819.7,2.61798]
[1717519784261,0.62134965,3819.8,3819.7,2.61798]
[1717519786266,0.62134965,3820.0,3819.7,2.61798]
[1717519786475,1.17656131,3820.0,3819.7,2.61798]
[1717519787659,0.62134965,3819.4,3818.6,2.61875]
[1717519787850,0.62134965,3819.4,3818.7,3.0]
[1717519788051,0.62134965,3819.2,3818.8,2.61858]
[1717519788355,0.62134965,3819.2,3819.1,2.61841]
[1717519801002,0.62134965,3818.9,3818.8,2.61858]
[1717519802982,0.62134965,3818.8,3818.2,2.61899]
[1717519803183,0.62134965,3818.3,3818.2,2.61899]
[1717519803705,2.10252986,3819.0,3818.7,2.61862]
[1717519803898,0.62134965,3818.8,3818.7,2.61862]
[1717519808245,1.48118021,3819.0,3818.7,2.61862]
[1717519808464,4.93076696,3819.1,3819.0,2.61848]
[1717519808591,0.62134965,3819.2,3819.0,2.61848]
[1717519810594,0.62134965,3819.2,3818.1,3.0]
[1717519810595,0.62134965,3818.8,3818.7,2.61865]
[1717519811548,0.62134965,3819.1,3818.9,2.6185]
[1717519813037,1.48118021,3819.5,3819.4,2.61821]
[1717519814159,0.62134965,3819.6,3819.4,2.61821]
[1717519815639,0.62134965,3819.8,3819.7,2.618]
[1717519816567,0.62134965,3819.6,3819.4,2.61818]
[1717519819429,1.17656131,3819.8,3819.4,2.61818]
[1717519819693,1.17656131,3819.8,3818.6,2.3153]
[1717519819694,0.62134965,3819.8,3819.7,2.618]
[1717519820397,4.93076696,3820.1,3819.3,2.61824]
[1717519820398,0.62134965,3819.4,3819.3,2.61824]
[1717519821605,0.62134965,3819.4,3818.8,2.6186]
[1717519821606,0.62134965,3819.8,3819.7,2.618]
[1717519825600,1.71633074,3820.0,3819.7,2.618]
[1717519825764,1.09498109,3820.1,3820.0,2.6178]
[1717519826110,0.62134965,3820.1,3820.0,2.6178]
[1717519829161,0.62134965,3820.3,3820.0,2.6178]
[1717519829665,0.62134965,3820.1,3820.0,2.6178]
[1717519831907,0.62134965,3820.1,3820.0,2.67180158]
[1717519835283,0.62134965,3820.3,3820.0,2.67180158]
[1717519835489,0.62134965,3820.1,3820.0,2.67180158]
[1717519837324,1.40234965,3820.1,3820.0,2.67180158]
[1717519837540,0.99550461,3820.1,3820.0,2.67180158]
[1717519840389,0.62134965,3820.1,3820.0,2.67180158]
[1717519841926,1.40234965,3820.1,3820.0,0.05400158]
[1717519842290,0.62134965,3819.8,3819.7,2.61799]
[1717519842510,1.40234965,3819.8,3819.7,2.61799]
[1717519842755,0.62134965,3819.5,3819.4,2.61817]
[1717519843093,0.62134965,3819.5,3819.4,2.67174736]
[1717519844003,0.62134965,3819.5,3819.4,0.05357736]
[1717519844254,0.19678917,3819.8,3819.1,2.61837]
[1717519844389,0.19678917,3819.8,3818.2,2.619]
[1717519844390,0.19678917,3819.8,3819.4,0.05357736]
[1717519844589,0.19678917,3819.8,3819.3,2.61825]
[1717519844590,0.43854241,3819.7,3819.3,2.61825]
[1717519844821,0.62134965,3819.6,3819.5,0.05348135]
[1717519845025,0.62134965,3819.2,3819.0,2.61845]
[1717519848564,5.55211661,3819.6,3819.5,2.61814]
[1717519849410,0.62134965,3819.6,3819.5,2.61814]
[1717519856091,2.3634,3819.9,3819.2,2.61829]
[1717519856242,3.15064245,3819.9,3819.2,2.61829]
[1717519856421,0.62134965,3819.3,3819.2,2.61829]
[1717519858336,0.62134965,3819.0,3818.9,2.61851]
[1717519858751,0.62134965,3819.0,3818.9,2.67246779]
[1717519859069,0.62134965,3819.0,3818.9,0.05395779]
[1717519859266,0.62134965,3818.7,3818.6,2.61872]
[1717519860034,0.62134965,3818.4,3818.3,2.61895]
[1717519860430,0.62134965,3818.4,3817.7,2.99733894]
[1717519860431,0.62134965,3818.8,3818.6,2.61873]
[1717519864453,0.62134965,3818.8,3818.3,2.61896]
[1717519864684,0.62134965,3818.4,3818.3,2.61896]
[1717519865572,1.48118021,3819.1,3818.0,2.61915]
[1717519865573,0.62134965,3818.1,3818.0,2.61915]
[1717519866622,2.2609,3818.5,3817.3,2.3136]
[1717519866623,0.62134965,3817.6,3817.4,2.61958]
[1717519867027,0.62134965,3817.6,3817.4,2.8820982]
[1717519867228,0.62134965,3817.6,3817.4,2.61958]
[1717519868653,0.62134965,3817.2,3817.1,2.61978]
[1717519870350,0.62134965,3817.2,3816.3,3.0]
[1717519870351,0.62134965,3816.8,3816.7,2.62006]
[1717519872644,0.62134965,3816.3,3816.2,2.6204]
[1717519873441,0.62134965,3816.8,3816.5,2.62019]
[1717519873635,0.62134965,3816.8,3815.3,2.62096]
[1717519873636,1.32126577,3816.6,3814.3,0.54154763]
[1717519873836,1.32126577,3816.6,3813.4,1.63631078]
[1717519873837,2.4303,3814.3,3813.6,0.54154763]
[1717519874071,2.4303,3814.3,3813.1,2.62253]
[1717519874576,2.4303,3814.3,3812.6,2.62282]
[1717519874577,1.876,3814.0,3812.6,2.62282]
[1717519874966,2.62203,3813.9,3812.6,2.62282]
[1717519875165,0.62134965,3813.0,3812.6,2.62282]
[1717519875391,0.62134965,3812.7,3812.6,2.62282]
[1717519875602,0.62134965,3813.4,3812.6,2.62282]
[1717519875946,0.62134965,3813.2,3812.6,2.62282]
[1717519876286,0.62134965,3813.4,3812.6,2.62282]
[1717519876959,0.62134965,3813.4,3812.9,2.6226]
[1717519877965,0.62134965,3813.2,3812.9,2.6226]
[1717519879200,0.62134965,3813.0,3812.9,2.6226]
[1717519880049,0.62134965,3813.3,3812.9,2.6226]
[1717519880490,0.62134965,3813.5,3813.4,2.62233]
[1717519881689,0.62134965,3813.5,3812.9,2.62261]
[1717519881868,1.876,3814.1,3812.9,2.62261]
[1717519882192,0.692802,3814.0,3812.9,2.62261]
[1717519882575,0.62134965,3813.0,3812.9,2.62261]
[1717519882775,0.692802,3814.0,3812.9,2.62261]
[1717519883300,12.33446482,3813.9,3812.9,2.62261]
[1717519883612,0.62134965,3813.4,3812.9,2.62261]
[1717519884481,0.62134965,3813.4,3813.1,2.62252]
[1717519884889,0.62134965,3813.4,3813.2,0.04772777]
[1717519885089,0.62134965,3813.4,3813.1,2.62252]
[1717519885288,0.62134965,3813.4,3813.3,0.04770001]
[1717519885490,0.62134965,3813.4,3813.1,2.62252]
[1717519885689,0.62134965,3812.7,3812.6,2.62283]
[1717519887411,0.62134965,3813.0,3812.6,2.62283]
[1717519887913,0.62134965,3813.0,3812.7,0.04786659]
[1717519888318,0.62134965,3813.0,3812.8,2.62274]
[1717519888822,0.62134965,3813.0,3812.9,0.04912408]
[1717519893599,1.19108661,3813.0,3812.2,2.62315]
[1717519893928,0.62134965,3812.3,3812.2,2.62315]
[1717519894283,0.56973696,3813.0,3812.2,2.62315]
[1717519894609,0.62134965,3812.3,3812.2,2.62315]
[1717519897499,4.93076696,3812.9,3812.8,2.62274]
[1717519897825,5.55211661,3812.9,3812.8,2.62274]
[1717519898025,2.4391,3813.9,3813.1,2.62253]
[1717519898026,4.93076696,3813.2,3813.1,2.62253]
[1717519898826,5.55211661,3813.2,3813.1,2.62253]
[1717519900898,4.93076696,3813.2,3813.1,2.62253]
[1717519901702,5.55211661,3813.2,3813.1,2.62253]
[1717519902102,0.62134965,3813.2,3813.1,2.62253]
[1717519903146,0.62134965,3813.2,3813.1,2.67191795]
[1717519903349,1.1877721,3813.2,3813.1,2.67191795]
[1717519904336,1.79962601,3813.2,3813.1,2.67191795]
[1717519904652,1.79962601,3813.2,3813.1,0.04938795]
[1717519904823,1.79962601,3813.2,3812.8,2.62273]
[1717519905009,0.62134965,3812.9,3812.8,2.62273]
[1717519905535,1.1877721,3812.9,3812.8,2.62273]
[1717519906202,1.1877721,3812.9,3812.8,2.67195741]
[1717519906634,0.56642245,3812.9,3812.8,2.67195741]
[1717519910034,0.56651512,3812.9,3812.8,2.67195741]
[1717519913025,0.62134965,3813.0,3812.8,2.67195741]
[1717519913226,0.56650093,3812.9,3812.8,2.67195741]
[1717519915476,2.14010213,3812.9,3812.8,2.67195741]
[1717519915634,4.93076696,3813.1,3812.8,2.67195741]
[1717519916571,4.93076696,3813.1,3812.8,5.29469741]
[1717519917534,5.55211661,3813.1,3812.8,5.29469741]
[1717519919529,5.55211661,3813.1,3813.0,0.54091399]
[1717519919730,0.62134965,3813.1,3813.0,0.54091399]
[1717519919938,0.62134965,3813.1,3813.0,0.58878803]
[1717519920838,0.62134965,3813.1,3813.0,0.04787404]
[1717519921083,0.62134965,3813.1,3812.8,2.62273]
[1717519921251,0.62134965,3812.9,3812.8,2.62273]
[1717519921454,1.18771782,3812.9,3812.8,2.62273]
[1717519921670,2.76131902,3812.9,3812.8,2.62273]
[1717519921867,1.18771782,3812.9,3812.8,2.62273]
[1717519922616,0.62134965,3812.9,3812.8,2.62273]
[1717519924445,0.62134965,3812.9,3812.8,5.24547]
[1717519924958,0.62134965,3812.9,3812.8,2.62273]
[1717519926860,0.62134965,3812.9,3812.3,2.62304]
[1717519926861,5.55211661,3813.3,3813.2,2.62246]
[1717519931398,0.62134965,3813.3,3813.2,2.62246]
[1717519932984,0.62134965,3813.3,3813.2,2.67013517]
[1717519933868,4.62259403,3813.6,3813.5,2.62226]
[1717519934070,1.28240521,3814.0,3813.8,5.2441]
[1717519934383,4.62259403,3814.4,3814.3,5.24342]
[1717519934806,4.62259403,3814.4,3814.3,5.29081782]
[1717519936988,4.62259403,3814.4,3814.3,8.29081782]
[1717519937725,7.3,3815.1,3814.3,8.29081782]
[1717519937887,7.3,3815.1,3815.0,2.62123]
[1717519938488,7.3,3815.1,3815.0,2.6680425]
[1717519939225,9.88331122,3815.1,3815.0,0.0468125]
[1717519939408,9.26196157,3815.1,3815.0,0.0468125]
[1717519939610,0.62134965,3814.8,3814.7,2.62141]
[1717519940097,0.62134965,3814.5,3814.4,2.62162]
[1717519942194,0.62134965,3814.2,3814.1,2.62182]
[1717519944290,0.62134965,3814.2,3813.8,2.62203]
[1717519944515,0.62134965,3813.9,3813.8,2.62203]
[1717519945526,0.62134965,3814.2,3814.1,2.62183]
[1717519945729,0.62134965,3814.4,3814.1,2.62183]
[1717519945916,0.62134965,3814.2,3814.1,2.62183]
[1717519946124,0.62134965,3814.2,3814.1,2.66851856]
[1717519947230,0.62134965,3814.2,3814.1,0.04668856]
[1717519947390,3.05784965,3814.2,3814.1,0.04668856]
[1717519947586,3.05784965,3814.2,3813.1,0.25868532]
[1717519947587,4.81806702,3814.2,3813.1,0.25868532]
[1717519947966,4.81806702,3814.2,3813.1,2.62253]
[1717519947967,0.62134965,3813.2,3813.1,2.62253]
[1717519949316,0.62134965,3813.4,3813.1,4.49853]
[1717519950092,0.62134965,3813.2,3813.1,4.49853]
[1717519952895,0.62134965,3813.4,3813.1,4.49853]
[1717519953944,0.62134965,3813.2,3813.1,2.62253]
[1717519957857,0.91946462,3813.2,3813.1,2.62253]
[1717519958055,0.91946462,3813.2,3812.8,2.6227]
[1717519958232,0.62134965,3812.9,3812.8,2.6227]
[1717519960376,0.62134965,3812.9,3812.0,0.39408211]
[1717519960377,0.62134965,3812.5,3812.4,2.62297]
[1717519962844,4.62259403,3813.1,3812.4,2.62297]
[1717519962845,0.62134965,3812.7,3812.4,2.62297]
[1717519963054,0.62134965,3812.7,3812.4,2.670706]
[1717519963724,0.62134965,3812.5,3812.4,2.670706]
[1717519963919,0.62134965,3812.5,3812.4,5.293716]
[1717519964525,0.62134965,3812.5,3812.4,2.670706]
[1717519966926,0.62134965,3812.5,3812.4,2.670706]
[1717519972636,0.62134965,3812.5,3812.4,0.047736]
[1717519973175,0.62134965,3812.2,3812.1,2.62319]
[1717519977999,7.3,3812.8,3812.1,2.6717544]
[1717519978311,0.62134965,3812.6,3812.5,2.62289]
[1717519978643,0.62134965,3812.6,3812.5,2.671306]
[1717519980247,1.14574402,3812.6,3812.5,2.671306]
[1717519980450,1.14574402,3812.6,3812.5,0.048416]
[1717519980948,0.62134965,3812.3,3812.2,2.6231]
[1717519981177,0.62134965,3812.3,3812.2,2.67162024]
[1717519982972,0.62134965,3812.3,3812.2,0.04852024]
[1717519983185,0.62134965,3812.1,3812.0,0.1265149]
[1717519983513,0.62134965,3812.1,3812.0,0.17495001]
[1717519984716,1.38817402,3812.1,3812.0,0.17495001]
[1717519984855,0.62134965,3812.1,3812.0,0.1265149]
[1717519985059,0.62134965,3812.1,3812.0,0.17524255]
[1717519985353,0.62134965,3812.1,3812.0,0.1265149]
[1717519985550,2.19533315,3812.1,3812.0,0.1265149]
[1717519985754,3.24456965,3812.1,3812.0,0.1265149]
[1717519986058,4.43486617,3812.1,3812.0,0.1265149]
[1717519986259,5.44253019,3812.1,3812.0,0.1265149]
[1717519986577,6.90116617,3812.1,3812.0,0.1265149]
[1717519987594,4.27794617,3812.1,3812.0,0.1265149]
[1717519987803,5.85232204,3812.1,3812.0,0.1265149]
[1717519988128,1.18808561,3812.1,3812.0,0.1265149]
[1717519988414,0.62134965,3812.1,3812.0,0.1265149]
[1717519989008,12.96716965,3812.1,3812.0,0.1265149]
[1717519989320,15.10825265,3812.1,3812.0,0.1265149]
[1717519989597,13.53387678,3812.1,3812.0,0.1265149]
[1717519989800,15.34952386,3812.1,3812.0,0.1265149]
[1717519990201,16.92394251,3812.1,3812.0,0.1265149]
[1717519990376,15.34952386,3812.1,3812.0,0.1265149]
[1717519990698,7.92134965,3812.1,3812.0,0.1265149]
[1717519991068,7.92134965,3812.1,3812.0,0.17550289]
[1717519993085,4.62259403,3812.3,3812.1,2.62322]
[1717519993283,4.62259403,3812.3,3812.1,4.95392]
[1717519993490,4.62259403,3812.3,3812.2,0.04912163]
[1717519994902,5.24394368,3812.3,3812.2,0.04912163]
[1717519995414,5.24394368,3812.3,3812.1,2.62322]
[1717519995415,4.62259403,3812.3,3812.1,2.62322]
[1717519995564,0.62134965,3812.2,3812.1,2.62322]
[1717519995906,0.62134965,3812.2,3812.1,2.67242228]
[1717519996784,4.62259403,3812.3,3812.1,2.67242228]
[1717519996971,5.24394368,3812.3,3812.1,2.67242228]
[1717519997171,4.62259403,3812.3,3812.1,2.67242228]
[1717519997717,7.3,3812.7,3812.1,2.67242228]
[1717519997718,7.3,3812.7,3812.6,2.62288]
[1717519998021,7.3,3812.7,3812.6,2.67158637]
[1717519998311,7.92134965,3812.7,3812.6,2.67158637]
[1717519999298,7.3,3812.7,3812.6,2.67158637]
[1717519999899,7.3,3812.7,3812.6,5.29446637]
[1717520000966,7.3,3812.7,3812.6,7.17046637]
[1717520001813,4.62259403,3813.2,3813.1,2.62253]
[1717520002011,0.62134965,3813.3,3813.1,5.24506]
[1717520002217,0.62134965,3813.3,3813.1,5.29324021]
[1717520002372,0.62134965,3813.3,3813.1,2.67071021]
[1717520002918,1.22534965,3813.5,3813.4,2.62233]
[1717520003102,0.604,3813.5,3813.4,2.62233]
[1717520003273,0.604,3813.5,3813.4,4.54640526]
[1717520003972,0.604,3813.5,3813.4,7.16873526]
[1717520005196,0.604,3813.5,3813.4,7.71873526]
[1717520005510,0.604,3813.5,3813.4,10.71873526]
[1717520006197,0.604,3813.5,3813.4,10.16873526]
[1717520007111,0.604,3813.5,3813.4,12.79106526]
[1717520007423,0.604,3813.5,3813.4,13.34106526]
[1717520007631,7.3,3813.9,3813.8,5.2441]
[1717520007836,7.3,3813.9,3813.8,9.5717]
[1717520008031,7.3,3813.9,3813.8,9.61902603]
[1717520008912,0.62134965,3814.8,3814.7,2.62143]
[1717520009340,0.62134965,3814.8,3814.7,2.66849051]
[1717520010822,0.86134965,3815.2,3815.1,2.62116]
[1717520011020,0.24,3815.2,3815.1,7.11832]
[1717520011217,0.24,3815.2,3815.1,4.54385465]
[1717520011435,0.86134965,3815.2,3815.1,4.54385465]
[1717520011616,0.86134965,3815.2,3815.1,2.66785465]
[1717520014011,0.24,3815.2,3815.1,2.66785465]
[1717520017914,0.86134965,3815.2,3815.1,2.66785465]
[1717520020729,0.24,3815.2,3815.1,2.66785465]
[1717520021232,0.86134965,3815.2,3815.1,2.66785465]
[1717520025868,1.18641461,3815.2,3815.1,2.66785465]
[1717520028284,1.18641461,3815.2,3815.1,0.04669465]
[1717520028655,1.18641461,3815.2,3814.8,2.62133]
[1717520028890,0.62134965,3814.9,3814.8,2.62133]
[1717520031014,0.56506496,3815.2,3814.8,2.62133]
[1717520031157,0.62134965,3814.6,3814.5,2.62154]
[1717520032567,0.62134965,3813.9,3813.8,1.876]
[1717520032772,0.62134965,3813.9,3813.8,2.62205]
[1717520033609,0.62134965,3814.2,3814.1,2.62185]
[1717520037803,0.62134965,3814.2,3814.1,2.66828553]
[1717520040647,0.62134965,3814.2,3814.1,2.62185]
[1717520042013,0.62134965,3814.2,3814.1,2.6685246]
[1717520042702,0.62134965,3814.2,3814.1,5.2903746]
[1717520042898,7.92134965,3814.6,3814.1,5.8403746]
[1717520043098,7.3,3814.6,3814.5,2.62157]
[1717520043304,7.3,3814.6,3814.5,5.24314]
[1717520043539,7.3,3814.6,3814.5,5.8399053]
[1717520046718,7.3,3814.6,3814.5,3.2183353]
[1717520047663,7.3,3814.6,3814.5,2.6683353]
[1717520048657,5.24394368,3814.7,3814.5,2.6683353]
[1717520048854,5.24394368,3815.1,3815.0,2.62123]
[1717520049648,5.24394368,3815.1,3815.0,2.66764536]
[1717520049848,8.90223805,3815.1,3815.0,0.04641536]
[1717520050228,0.62134965,3814.8,3814.7,2.6214]
[1717520050419,0.62134965,3814.8,3814.7,2.66778714]
[1717520055296,2.3063,3815.1,3814.7,2.66778714]
[1717520055467,1.14193667,3815.0,3814.7,2.66778714]
[1717520055824,0.62134965,3814.8,3814.7,2.6214]
[1717520055968,1.14193667,3815.0,3814.7,2.66743291]
[1717520056169,0.62134965,3814.8,3814.7,2.66743291]
[1717520056370,2.3063,3815.1,3814.7,2.66743291]
[1717520056673,3.44823667,3815.1,3814.7,2.6214]
[1717520057078,0.62134965,3814.8,3814.7,2.6214]
[1717520057474,0.62134965,3814.8,3814.7,2.66750765]
[1717520058001,0.62134965,3814.8,3814.7,2.6214]
[1717520058411,0.62134965,3814.8,3814.7,2.66750765]
[1717520058573,3.44823667,3815.1,3814.7,2.66750765]
[1717520058904,0.62134965,3814.8,3814.7,2.6214]
[1717520060008,0.62134965,3814.5,3814.4,2.6216]
[1717520060212,0.62134965,3814.2,3814.1,2.6218]
[1717520062167,1.57311926,3814.9,3813.6,2.62218]
[1717520062412,2.13943456,3815.0,3814.8,2.62134]
[1717520062635,0.62134965,3814.9,3814.8,2.62134]
[1717520063706,0.62134965,3814.9,3814.5,2.62152]
[1717520064308,0.62134965,3814.6,3814.5,2.62152]
[1717520065370,1.76486855,3815.0,3814.8,2.62133]
[1717520065574,1.81992311,3815.0,3814.8,2.62133]
[1717520065875,1.81992311,3815.0,3814.9,0.04351104]
[1717520066095,1.19857346,3815.0,3814.9,0.04351104]
[1717520066374,1.19857346,3815.0,3814.8,2.62133]
[1717520066600,0.62134965,3814.9,3814.8,2.62133]
[1717520067795,0.41991885,3814.9,3814.8,2.62133]
[1717520067997,1.0412685,3814.9,3814.8,2.62133]
[1717520068618,0.62134965,3814.9,3814.8,2.62133]
[1717520075230,2.19437012,3814.9,3814.8,2.62133]
[1717520075747,2.19437012,3814.9,3813.9,2.62194]
[1717520075748,0.62134965,3814.6,3814.5,2.62152]
[1717520076052,0.62134965,3814.6,3814.5,2.66512881]
[1717520076336,0.84078666,3814.6,3814.5,0.04360881]
[1717520076637,2.4140478,3814.6,3814.5,0.04360881]
[1717520076838,2.4140478,3814.6,3814.2,2.62173]
[1717520076839,0.62134965,3814.3,3814.2,2.62173]
[1717520082328,0.62134965,3814.3,3814.2,5.79351]
[1717520082961,0.62134965,3814.3,3814.2,5.83725816]
[1717520089219,0.62134965,3814.3,3814.2,2.66547816]
[1717520100264,0.62134965,3814.3,3814.2,5.28725816]
[1717520102731,2.13943291,3814.8,3814.2,5.28725816]
[1717520102732,0.62134965,3814.5,3814.2,5.28725816]
[1717520102936,2.76078256,3814.8,3814.7,2.62143]